bitfinex-derivatives/quotes_BTCF0:USTF0_20241217
["timestamp","ask_amount","ask_price","bid_price","bid_amount"]
[1734415940548,0.55932697,106730.0,106720.0,0.046853]
[1734415941244,0.55932697,106730.0,106720.0,0.08633788]
[1734415942641,0.55932697,106730.0,106720.0,0.03948488]
[1734415942842,0.046853,106720.0,106710.0,0.49546321]
[1734415943035,0.46293097,106720.0,106710.0,0.04876254]
[1734415943536,0.407653,106720.0,106710.0,0.10404051]
[1734415943737,0.46293097,106720.0,106710.0,0.10354051]
[1734415944744,0.46293097,106720.0,106710.0,0.10404051]
[1734415945141,0.10213097,106720.0,106710.0,0.10404051]
[1734415945537,0.10213097,106720.0,106710.0,0.14308336]
[1734415945739,0.10213097,106720.0,106710.0,0.14258336]
[1734415945937,0.46293097,106720.0,106710.0,0.14258336]
[1734415946653,0.46293097,106720.0,106710.0,0.08730539]
[1734415946849,0.46293097,106720.0,106710.0,0.08780539]
[1734415947837,0.46293097,106720.0,106710.0,0.08730539]
[1734415948846,0.46293097,106720.0,106710.0,0.08780539]
[1734415949048,0.50405,106730.0,106710.0,0.55916133]
[1734415949249,0.47115,106730.0,106720.0,0.10213097]
[1734415951847,0.52642797,106730.0,106720.0,0.046853]
[1734415957843,0.10213097,106720.0,106710.0,0.52662139]
[1734415958064,0.46293097,106720.0,106710.0,0.07992072]
[1734415958950,0.46293097,106720.0,106710.0,0.08042072]
[1734415959651,0.10213097,106720.0,106710.0,0.08042072]
[1734415959851,0.46293097,106720.0,106710.0,0.07992072]
[1734415960859,0.46293097,106720.0,106710.0,0.08042072]
[1734415961954,0.46293097,106720.0,106710.0,0.07992072]
[1734415962863,0.46293097,106720.0,106710.0,0.08042072]
[1734415963549,0.51820894,106720.0,106710.0,0.03356372]
[1734415963756,0.54980894,106720.0,106710.0,0.03356372]
[1734415963957,0.54980894,106720.0,106710.0,0.03306372]
[1734415964155,0.046858,106710.0,106700.0,6.907e-05]
[1734415964354,0.52723597,106710.0,106700.0,6.907e-05]
[1734415964856,0.52723597,106710.0,106700.0,0.03447396]
[1734415965858,0.52723597,106710.0,106700.0,0.03397396]
[1734415966861,0.52723597,106710.0,106700.0,0.03447396]
[1734415967863,0.52723597,106710.0,106700.0,0.03397396]
[1734415968866,0.52723597,106710.0,106700.0,0.03447396]
[1734415972976,0.52723597,106710.0,106700.0,0.03397396]
[1734415984623,0.471958,106710.0,106700.0,0.03397396]
[1734415984776,0.438758,106710.0,106700.0,0.08925193]
[1734415985361,0.49403597,106710.0,106700.0,0.03397396]
[1734415986065,0.52563597,106710.0,106700.0,0.03397396]
[1734415986577,0.58103468,106710.0,106700.0,0.03397396]
[1734415986765,0.52575671,106710.0,106700.0,0.03397396]
[1734415996872,0.47047874,106710.0,106700.0,0.03397396]
[1734415997089,0.52575671,106710.0,106700.0,0.03397396]
[1734415999184,0.58103468,106710.0,106700.0,0.03397396]
[1734415999776,0.94183468,106710.0,106700.0,0.03397396]
[1734416000670,0.88655671,106710.0,106700.0,0.03397396]
[1734416000867,0.94183468,106710.0,106700.0,6.907e-05]
[1734416003375,1.02603492,106710.0,106700.0,6.907e-05]
[1734416007583,0.94183468,106710.0,106700.0,6.907e-05]
[1734416007887,1.02603492,106710.0,106700.0,6.907e-05]
[1734416017392,0.046867,106690.0,106680.0,0.0005]
[1734416017588,0.87902294,106690.0,106680.0,0.0005]
[1734416017783,0.768467,106690.0,106680.0,0.0005]
[1734416018091,0.046871,106680.0,106670.0,0.53501458]
[1734416018387,0.46294897,106680.0,106670.0,0.48802112]
[1734416021495,0.46294897,106680.0,106670.0,0.5341091]
[1734416023301,0.46294897,106680.0,106670.0,0.14197591]
[1734416023797,0.51822694,106680.0,106670.0,0.07677591]
[1734416027009,0.51822694,106680.0,106670.0,0.07727591]
[1734416027204,0.51822694,106680.0,106670.0,0.04667591]
[1734416027796,0.55022694,106680.0,106670.0,0.04667591]
[1734416028000,0.55022694,106680.0,106670.0,0.04617591]
[1734416029008,0.55022694,106680.0,106670.0,0.04667591]
[1734416029303,0.439671,106680.0,106670.0,0.04667591]
[1734416029507,0.55022694,106680.0,106670.0,0.04667591]
[1734416033100,0.55022694,106680.0,106670.0,0.0005]
[1734416037010,0.046875,106670.0,106660.0,0.00011426]
[1734416037216,0.46295297,106670.0,106660.0,0.00011426]
[1734416037509,0.49295297,106670.0,106660.0,0.00011426]
[1734416037910,0.46295297,106670.0,106660.0,0.00061426]
[1734416038409,0.407675,106670.0,106660.0,0.05589223]
[1734416038812,0.407675,106670.0,106660.0,0.10277223]
[1734416039012,0.407675,106670.0,106660.0,0.04699426]
[1734416039217,0.407675,106670.0,106660.0,0.10227223]
[1734416039913,0.407675,106670.0,106660.0,0.10277223]
[1734416040104,0.407675,106670.0,106660.0,0.04749426]
[1734416040304,0.46295297,106670.0,106660.0,0.10277223]
[1734416041111,0.407675,106670.0,106660.0,0.54968339]
[1734416041319,0.39290641,106700.0,106660.0,1.24198339]
[1734416041509,0.046869,106690.0,106680.0,0.10214897]
[1734416041741,0.40957041,106700.0,106690.0,0.046867]
[1734416041910,0.46434838,106700.0,106690.0,0.046867]
[1734416042817,0.046867,106690.0,106680.0,0.47030319]
[1734416043017,0.10214497,106690.0,106680.0,0.47030319]
[1734416043212,0.10214497,106690.0,106680.0,0.13344797]
[1734416043213,0.046867,106690.0,106680.0,0.13344797]
[1734416043621,0.046867,106690.0,106680.0,0.52558116]
[1734416043917,0.046867,106690.0,106680.0,0.13344797]
[1734416044113,0.10214497,106690.0,106680.0,0.04687]
[1734416044421,0.46294497,106690.0,106680.0,0.04687]
[1734416044607,0.10214497,106690.0,106680.0,0.04687]
[1734416044811,0.46294497,106690.0,106680.0,0.43900319]
[1734416046714,0.10214497,106690.0,106680.0,0.43900319]
[1734416046918,0.046867,106690.0,106680.0,0.43900319]
[1734416047107,0.10214497,106690.0,106680.0,0.43900319]
[1734416047508,0.10214497,106690.0,106680.0,0.48618346]
[1734416047918,0.46434738,106700.0,106690.0,0.046867]
[1734416048914,0.46484738,106700.0,106690.0,0.046867]
[1734416049910,0.46434738,106700.0,106690.0,0.046867]
[1734416051018,0.46484738,106700.0,106690.0,0.046867]
[1734416051831,0.52012535,106700.0,106690.0,0.046867]
[1734416052017,0.46434738,106700.0,106690.0,0.046867]
[1734416052410,0.51962535,106700.0,106690.0,0.046867]
[1734416052911,0.52012535,106700.0,106690.0,0.046867]
[1734416053314,0.46484738,106700.0,106690.0,0.046867]
[1734416053819,0.52012535,106700.0,106690.0,0.046867]
[1734416054011,0.51962535,106700.0,106690.0,0.046867]
[1734416055016,0.52012535,106700.0,106690.0,0.046867]
[1734416056112,0.51962535,106700.0,106690.0,0.046867]
[1734416057017,0.52012535,106700.0,106690.0,0.046867]
[1734416058515,0.046867,106690.0,106680.0,0.09405027]
[1734416058716,0.52744497,106690.0,106680.0,0.04687]
[1734416059014,0.56034497,106690.0,106680.0,0.04687]
[1734416067422,0.56034497,106690.0,106680.0,0.43900319]
[1734416068810,0.51347797,106690.0,106670.0,0.98488196]
[1734416069024,0.46294897,106680.0,106670.0,0.53768129]
[1734416069427,0.46294897,106680.0,106670.0,0.59224877]
[1734416070015,0.46294897,106680.0,106670.0,0.59274877]
[1734416071026,0.46294897,106680.0,106670.0,0.59224877]
[1734416071635,0.46294897,106680.0,106670.0,0.59770744]
[1734416071928,0.46294897,106680.0,106670.0,0.54311132]
[1734416072134,0.46294897,106680.0,106670.0,0.54361132]
[1734416072317,0.46294897,106680.0,106670.0,0.93582039]
[1734416072717,0.46294897,106680.0,106670.0,0.48759015]
[1734416072927,0.46294897,106680.0,106670.0,0.93582039]
[1734416073133,0.46294897,106680.0,106670.0,0.93532039]
[1734416073429,0.407671,106680.0,106670.0,0.93532039]
[1734416073621,0.407671,106680.0,106670.0,0.59838929]
[1734416073826,0.407671,106680.0,106670.0,0.63118929]
[1734416074130,0.407671,106680.0,106670.0,0.63168929]
[1734416076629,0.3608,106680.0,106670.0,0.63168929]
[1734416076930,0.3608,106680.0,106670.0,1.02378152]
[1734416077132,0.3608,106680.0,106670.0,1.02328152]
[1734416077949,0.56034497,106690.0,106680.0,0.046871]
[1734416078127,0.56034497,106690.0,106680.0,0.43893315]
[1734416083933,0.505067,106690.0,106680.0,0.43893315]
[1734416084123,0.56034497,106690.0,106680.0,0.43893315]
[1734416085030,0.3608,106690.0,106680.0,0.55037921]
[1734416085332,0.3608,106690.0,106680.0,0.55917508]
[1734416085553,0.3608,106690.0,106680.0,0.55037921]
[1734416086235,0.46434738,106700.0,106680.0,0.50350821]
[1734416086425,0.46434738,106700.0,106690.0,0.43915224]
[1734416087921,0.51962535,106700.0,106690.0,0.43915224]
[1734416091553,0.51962535,106700.0,106690.0,0.046867]
[1734416092432,0.51962535,106700.0,106690.0,0.43915224]
[1734416092628,0.51962535,106700.0,106690.0,0.046867]
[1734416093026,0.51962535,106700.0,106680.0,0.75067581]
[1734416093334,0.41607797,106690.0,106680.0,0.79756755]
[1734416093531,0.3608,106690.0,106680.0,0.79756977]
[1734416093836,0.3608,106690.0,106680.0,0.4391792]
[1734416094136,0.3608,106690.0,106680.0,0.046871]
[1734416095428,0.3608,106690.0,106680.0,0.09475017]
[1734416095837,0.3911,106690.0,106680.0,0.10354604]
[1734416096331,0.437967,106690.0,106680.0,0.10354604]
[1734416096537,0.49324497,106690.0,106680.0,0.09475017]
[1734416097333,0.49324497,106690.0,106680.0,0.48706752]
[1734416097726,0.437967,106690.0,106680.0,0.48706752]
[1734416098039,0.437967,106690.0,106680.0,0.09475017]
[1734416098729,0.49324497,106690.0,106680.0,0.09475017]
[1734416100429,0.437967,106690.0,106680.0,0.09475017]
[1734416100627,0.49324497,106690.0,106680.0,0.09475017]
[1734416100835,0.55924497,106690.0,106680.0,0.09475017]
[1734416101324,0.55924497,106690.0,106680.0,0.04787917]
[1734416101538,0.61452294,106690.0,106680.0,0.39231856]
[1734416101846,0.55924497,106690.0,106680.0,0.39231856]
[1734416103639,0.51237797,106690.0,106670.0,0.48545843]
[1734416103840,0.46294897,106680.0,106670.0,0.48545843]
[1734416104148,0.46294897,106680.0,106670.0,0.09313987]
[1734416105031,0.46294897,106680.0,106670.0,0.54157498]
[1734416109046,0.46294897,106680.0,106670.0,0.55037085]
[1734416109237,0.46294897,106680.0,106670.0,1.05319721]
[1734416109942,0.46294897,106680.0,106670.0,0.54157498]
[1734416110137,0.46294897,106680.0,106670.0,1.05319721]
[1734416110347,0.51822694,106680.0,106670.0,0.9339618]
[1734416110540,0.46294897,106680.0,106670.0,0.9339618]
[1734416110735,0.46294897,106680.0,106670.0,0.48552669]
[1734416111337,0.407671,106680.0,106670.0,0.48552669]
[1734416111546,0.46294897,106680.0,106670.0,0.48552669]
[1734416112152,0.3608,106680.0,106670.0,0.54080466]
[1734416112534,0.503968,106690.0,106680.0,0.046871]
[1734416112947,0.503968,106690.0,106680.0,0.43925782]
[1734416113134,0.503968,106690.0,106680.0,0.046871]
[1734416113345,0.503968,106690.0,106670.0,0.90513621]
[1734416113646,0.503968,106690.0,106680.0,0.10214897]
[1734416113875,0.437968,106690.0,106680.0,0.10214897]
[1734416114447,0.437968,106690.0,106680.0,0.046871]
[1734416114645,0.437968,106690.0,106680.0,0.10214897]
[1734416115650,0.49324597,106690.0,106680.0,0.046871]
[1734416116153,0.3911,106690.0,106680.0,0.10214897]
[1734416116651,0.46434738,106700.0,106680.0,0.10214897]
[1734416116845,0.49514738,106700.0,106680.0,0.10214897]
[1734416117068,0.49514738,106700.0,106690.0,0.046867]
[1734416121543,0.55042535,106700.0,106690.0,0.046867]
[1734416121943,0.49514738,106700.0,106690.0,0.046867]
[1734416122657,0.49514738,106700.0,106690.0,0.09327511]
[1734416132970,0.39300641,106700.0,106690.0,0.14855308]
[1734416133182,0.03220641,106700.0,106690.0,0.14855308]
[1734416133395,0.03220641,106700.0,106690.0,0.18165308]
[1734416133772,0.39300641,106700.0,106690.0,0.18165308]
[1734416133967,0.44828438,106700.0,106690.0,0.09327511]
[1734416134169,0.50356235,106700.0,106690.0,0.09327511]
[1734416134680,0.55042435,106700.0,106690.0,0.09327511]
[1734416137983,0.49514638,106700.0,106690.0,0.09327511]
[1734416144181,0.39300641,106700.0,106690.0,0.14855308]
[1734416144387,0.44828438,106700.0,106690.0,0.54171022]
[1734416146483,0.44828438,106700.0,106690.0,0.09327511]
[1734416146989,0.44828438,106700.0,106690.0,0.54171022]
[1734416147380,0.44828438,106700.0,106690.0,0.37389833]
[1734416147586,0.44828438,106700.0,106690.0,0.42076533]
[1734416147785,0.44828438,106700.0,106690.0,0.046867]
[1734416149085,0.44828438,106700.0,106690.0,0.09322583]
[1734416151691,0.39300641,106700.0,106690.0,0.09322583]
[1734416152998,0.55042435,106700.0,106690.0,0.09322583]
[1734416153182,0.49514638,106700.0,106690.0,0.09322583]
[1734416156896,0.43986841,106700.0,106690.0,0.09322583]
[1734416157097,0.49514638,106700.0,106690.0,0.09322583]
[1734416158192,0.49373997,106700.0,106690.0,0.09322583]
[1734416161803,0.54901794,106700.0,106690.0,0.09322583]
[1734416162400,0.49373997,106700.0,106690.0,0.09322583]
[1734416165602,0.54901794,106700.0,106690.0,0.09322583]
[1734416166204,0.54901794,106700.0,106690.0,0.04635883]
[1734416166397,0.63323888,106700.0,106670.0,0.4957128]
[1734416166589,0.51822694,106680.0,106670.0,0.046874]
[1734416166901,0.51822694,106680.0,106670.0,0.09302473]
[1734416167092,0.54952694,106680.0,106670.0,0.09302473]
[1734416167304,0.54952694,106680.0,106670.0,0.09352473]
[1734416168294,0.54952694,106680.0,106670.0,0.09302473]
[1734416168798,0.49424897,106680.0,106670.0,0.09302473]
[1734416169195,0.49424897,106680.0,106670.0,0.09352473]
[1734416170192,0.49424897,106680.0,106670.0,0.09302473]
[1734416171296,0.49424897,106680.0,106670.0,0.09352473]
[1734416172295,0.49424897,106680.0,106670.0,0.09302473]
[1734416172607,0.438971,106680.0,106670.0,0.09302473]
[1734416172801,0.49424897,106680.0,106670.0,0.09302473]
[1734416173310,0.49424897,106680.0,106670.0,0.09352473]
[1734416174204,0.49424897,106680.0,106670.0,0.09302473]
[1734416174406,0.54952694,106680.0,106670.0,0.04615073]
[1734416174609,0.49424897,106680.0,106660.0,0.51594315]
[1734416175316,0.49424897,106680.0,106670.0,0.0005]
[1734416175705,0.54952694,106680.0,106670.0,0.0005]
[1734416175903,0.91032694,106680.0,106670.0,0.0005]
[1734416178208,0.046875,106670.0,106660.0,0.04809887]
[1734416178423,0.52645297,106670.0,106660.0,0.04809887]
[1734416179219,0.52645297,106670.0,106660.0,0.04859887]
[1734416180226,0.52645297,106670.0,106660.0,0.04809887]
[1734416181131,0.52645297,106670.0,106660.0,0.04859887]
[1734416182032,0.52645297,106670.0,106650.0,0.88844311]
[1734416182033,0.58173094,106670.0,106650.0,0.88844311]
[1734416182240,0.58173094,106670.0,106650.0,0.43960431]
[1734416182241,0.51823594,106660.0,106650.0,0.43960431]
[1734416182534,0.51823594,106660.0,106650.0,0.046884]
[1734416182739,0.51823594,106660.0,106650.0,0.09329596]
[1734416183035,0.51823594,106660.0,106650.0,0.09340849]
[1734416184831,0.51823594,106660.0,106650.0,0.04652449]
[1734416187244,0.51823594,106660.0,106650.0,0.04702449]
[1734416188339,0.51823594,106660.0,106650.0,0.04652449]
[1734416189231,0.51823594,106660.0,106650.0,0.04702449]
[1734416190440,0.51823594,106660.0,106650.0,0.04652449]
[1734416191346,0.51823594,106660.0,106650.0,0.04702449]
[1734416191734,0.40768,106660.0,106650.0,0.04702449]
[1734416191941,0.51823594,106660.0,106650.0,0.04702449]
[1734416192134,0.40768,106660.0,106650.0,0.04702449]
[1734416192439,0.40768,106660.0,106650.0,0.04652449]
[1734416192638,0.51823594,106660.0,106650.0,0.04652449]
[1734416193236,0.51823594,106660.0,106650.0,0.04702449]
[1734416194449,0.51823594,106660.0,106650.0,0.4397448]
[1734416195148,0.51823594,106660.0,106650.0,0.04702449]
[1734416195445,0.40768,106660.0,106650.0,0.04652449]
[1734416195643,0.51823594,106660.0,106650.0,0.04652449]
[1734416197239,0.46295797,106660.0,106650.0,0.04652449]
[1734416197439,0.46295797,106660.0,106650.0,0.4861288]
[1734416198041,0.46295797,106660.0,106650.0,0.09340849]
[1734416202253,0.46295797,106660.0,106650.0,0.4861288]
[1734416202455,0.40768,106660.0,106650.0,0.54140677]
[1734416202663,0.40768,106660.0,106650.0,0.60310677]
[1734416202862,0.46295797,106660.0,106650.0,0.5478288]
[1734416208163,0.46295797,106660.0,106650.0,0.60394729]
[1734416209358,0.46295797,106660.0,106650.0,0.99724422]
[1734416210548,0.46295797,106660.0,106650.0,1.16205162]
[1734416210549,0.3608,106660.0,106650.0,1.16205162]
[1734416210750,0.3608,106660.0,106650.0,1.17084749]
[1734416211059,0.3608,106660.0,106650.0,0.72200869]
[1734416211848,0.3608,106660.0,106650.0,0.71321282]
[1734416212292,0.3608,106660.0,106650.0,1.16280176]
[1734416212647,0.3608,106660.0,106650.0,0.71321282]
[1734416213254,0.3608,106660.0,106650.0,1.16270795]
[1734416213663,0.3608,106660.0,106650.0,1.05448346]
[1734416214454,0.3608,106660.0,106650.0,0.5516571]
[1734416214655,0.3608,106660.0,106650.0,0.55172496]
[1734416214854,0.3608,106660.0,106650.0,1.05455132]
[1734416215064,0.3608,106660.0,106650.0,0.55172496]
[1734416218559,0.3608,106660.0,106650.0,0.598504]
[1734416218760,0.3608,106660.0,106650.0,0.54322603]
[1734416218761,0.77135594,106660.0,106650.0,0.54322603]
[1734416218956,0.60561391,106660.0,106650.0,6.786e-05]
[1734416219370,0.55033594,106660.0,106650.0,6.786e-05]
[1734416219963,0.43978,106660.0,106650.0,6.786e-05]
[1734416220165,0.49505797,106660.0,106650.0,6.786e-05]
[1734416220665,0.55033594,106660.0,106650.0,6.786e-05]
[1734416221064,0.49505797,106660.0,106650.0,6.786e-05]
[1734416221271,0.55033594,106660.0,106650.0,6.786e-05]
[1734416221474,0.49505797,106660.0,106650.0,6.786e-05]
[1734416221774,0.55033594,106660.0,106650.0,6.786e-05]
[1734416221978,0.52416129,106660.0,106650.0,6.786e-05]
[1734416222971,0.43978,106660.0,106650.0,6.786e-05]
[1734416223173,0.52416129,106660.0,106650.0,6.786e-05]
[1734416229089,0.52416129,106660.0,106650.0,0.39322684]
[1734416230793,0.43978,106660.0,106650.0,0.39322684]
[1734416230988,0.43978,106660.0,106650.0,0.44011084]
[1734416231195,0.0619,106670.0,106660.0,0.04688]
[1734416231491,0.0312,106670.0,106660.0,0.13126129]
[1734416232295,0.0312,106670.0,106660.0,0.5802655]
[1734416232591,0.42540658,106690.0,106670.0,0.046872]
[1734416232592,0.47227458,106690.0,106670.0,0.046872]
[1734416232783,0.50407458,106690.0,106670.0,0.58008811]
[1734416232981,0.50407458,106690.0,106680.0,0.046871]
[1734416238299,0.50457458,106690.0,106680.0,0.046871]
[1734416238992,0.14377458,106690.0,106680.0,0.046871]
[1734416239496,0.50457458,106690.0,106680.0,0.046871]
[1734416240393,0.14377458,106690.0,106680.0,0.046871]
[1734416241396,0.50457458,106690.0,106680.0,0.046871]
[1734416242099,0.58895587,106690.0,106680.0,0.04637832]
[1734416242294,0.58895587,106690.0,106670.0,0.046874]
[1734416242500,0.49205229,106680.0,106670.0,0.046874]
[1734416244991,0.046875,106670.0,106660.0,0.43843165]
[1734416245191,0.58415629,106670.0,106660.0,0.48500153]
[1734416245403,0.58415629,106670.0,106660.0,0.09344888]
[1734416246409,0.499775,106670.0,106660.0,0.09344888]
[1734416251402,0.138975,106670.0,106660.0,0.09344888]
[1734416251605,0.499775,106670.0,106660.0,0.09344888]
[1734416252207,0.138975,106670.0,106660.0,0.09344888]
[1734416252405,0.499775,106670.0,106660.0,0.09344888]
[1734416252706,0.499775,106670.0,106660.0,0.48500153]
[1734416257106,0.499775,106670.0,106660.0,0.09344888]
[1734416257998,0.5551311,106670.0,106660.0,0.09344888]
[1734416260206,0.5551311,106670.0,106660.0,0.48500153]
[1734416263123,0.5551311,106670.0,106660.0,0.54035763]
[1734416264420,0.4529,106670.0,106660.0,0.59571373]
[1734416264716,0.391,106670.0,106660.0,0.54035763]
[1734416266914,0.0302,106670.0,106660.0,0.54035763]
[1734416267417,0.0302,106670.0,106660.0,0.5976398]
[1734416267615,0.0302,106670.0,106660.0,0.9584398]
[1734416268724,0.0302,106670.0,106660.0,0.5976398]
[1734416268943,0.0302,106670.0,106660.0,0.54112477]
[1734416269221,0.0302,106670.0,106660.0,0.5976398]
[1734416269523,0.0302,106670.0,106660.0,0.54120224]
[1734416269712,0.391,106670.0,106660.0,0.54120224]
[1734416271218,0.391,106670.0,106660.0,0.5976398]
[1734416271817,0.4463561,106670.0,106660.0,0.5976398]
[1734416272021,0.4932351,106670.0,106660.0,0.48608126]
[1734416273825,0.437879,106670.0,106660.0,0.48608126]
[1734416274127,0.437879,106670.0,106660.0,0.5422837]
[1734416275625,0.437879,106670.0,106660.0,0.5976398]
[1734416276645,0.437879,106670.0,106660.0,0.5422837]
[1734416278340,0.4932351,106670.0,106660.0,0.4862096]
[1734416279034,0.077079,106670.0,106660.0,0.4862096]
[1734416279236,0.4932351,106670.0,106660.0,0.4862096]
[1734416280534,0.4932351,106670.0,106660.0,0.4393306]
[1734416280738,0.4932351,106670.0,106660.0,0.4954047]
[1734416280938,0.4932351,106670.0,106660.0,0.04656988]
[1734416281141,0.5485912,106670.0,106660.0,0.88823237]
[1734416281347,0.4932351,106670.0,106660.0,0.39282767]
[1734416282449,0.5401181,106670.0,106650.0,1.29967261]
[1734416282640,0.5824962,106660.0,106650.0,1.29967261]
[1734416282842,0.5824962,106660.0,106650.0,0.93456205]
[1734416283444,0.5824962,106660.0,106650.0,0.48572723]
[1734416283641,0.5824962,106660.0,106650.0,0.54173438]
[1734416283846,0.5824962,106660.0,106650.0,0.93424362]
[1734416284445,0.5824962,106660.0,106650.0,0.4854088]
[1734416284638,0.5824962,106660.0,106650.0,0.09289956]
[1734416285952,0.5824962,106660.0,106650.0,0.04601256]
[1734416286344,0.046888,106650.0,106640.0,0.79151192]
[1734416286551,0.5498002,106650.0,106640.0,0.3426771]
[1734416286747,0.046892,106640.0,106630.0,0.49572982]
[1734416287064,0.5501042,106640.0,106630.0,0.046895]
[1734416287455,0.5501042,106640.0,106630.0,0.04699835]
[1734416288452,0.55022547,106640.0,106630.0,0.04699835]
[1734416289347,0.55022547,106640.0,106630.0,0.00010335]
[1734416289645,0.58122547,106640.0,106630.0,0.00010335]
[1734416289862,0.58122547,106640.0,106630.0,0.33635487]
[1734416290650,0.58122547,106640.0,106630.0,0.00010335]
[1734416290952,0.58122547,106640.0,106630.0,0.33622595]
[1734416292345,0.58122547,106640.0,106630.0,0.33672595]
[1734416293455,0.58122547,106640.0,106630.0,0.00010335]
[1734416294345,0.58122547,106640.0,106630.0,0.00060335]
[1734416295357,0.58122547,106640.0,106630.0,0.04735546]
[1734416295553,0.58122547,106640.0,106630.0,0.00010335]
[1734416295752,0.63658157,106640.0,106630.0,0.00010335]
[1734416296362,0.58122547,106640.0,106630.0,0.00060335]
[1734416296857,0.63658157,106640.0,106630.0,0.00060335]
[1734416297354,0.58122547,106640.0,106630.0,0.00010335]
[1734416298260,0.63658157,106640.0,106630.0,0.00010335]
[1734416298449,0.63658157,106640.0,106630.0,0.00060335]
[1734416298653,0.58122547,106640.0,106630.0,0.00060335]
[1734416299779,0.58122547,106640.0,106630.0,0.04750365]
[1734416299958,0.55494334,106640.0,106630.0,0.04750365]
[1734416302454,0.55494334,106640.0,106630.0,0.04700365]
[1734416303163,0.55494334,106640.0,106630.0,0.38312625]
[1734416308650,0.55494334,106640.0,106630.0,0.04700365]
[1734416314957,0.63937341,106640.0,106630.0,0.2221635]
[1734416315158,0.63937341,106640.0,106610.0,0.70636745]
[1734416315353,0.57655914,106620.0,106610.0,0.70686745]
[1734416315563,0.49212907,106620.0,106610.0,0.70686745]
[1734416315780,0.49212907,106620.0,106610.0,0.67376745]
[1734416316060,0.49212907,106620.0,106610.0,0.70057885]
[1734416316258,0.85292907,106620.0,106610.0,0.25174403]
[1734416316455,0.93735914,106620.0,106610.0,0.70007885]
[1734416317165,0.93735914,106620.0,106610.0,0.70740524]
[1734416317365,0.93735914,106620.0,106610.0,0.70790524]
[1734416318470,0.93735914,106620.0,106610.0,0.03883643]
[1734416319472,0.93735914,106620.0,106610.0,0.03933643]
[1734416319677,0.93735914,106620.0,106600.0,0.71544881]
[1734416319861,0.52283307,106610.0,106600.0,0.71544881]
[1734416320058,0.5492767,106610.0,106600.0,0.71544881]
[1734416320364,0.5492767,106610.0,106600.0,0.66856881]
[1734416320577,0.6092767,106610.0,106600.0,0.66856881]
[1734416320900,0.6092767,106610.0,106600.0,0.70728487]
[1734416321264,0.49383985,106610.0,106600.0,0.70728487]
[1734416323360,0.49383985,106610.0,106600.0,0.48805088]
[1734416323677,0.49383985,106610.0,106600.0,0.70778487]
[1734416324165,0.49383985,106610.0,106600.0,0.48805088]
[1734416324361,0.49383985,106610.0,106600.0,0.70728487]
[1734416324671,0.49383985,106610.0,106600.0,0.48755088]
[1734416325475,0.49383985,106610.0,106600.0,0.48805088]
[1734416326074,0.13303985,106610.0,106600.0,0.53495788]
[1734416326273,0.4077,106620.0,106610.0,0.046903]
[1734416326471,0.46313685,106620.0,106610.0,0.140503]
[1734416326972,0.3608,106620.0,106610.0,0.140503]
[1734416327169,0.58095242,106630.0,106620.0,0.046898]
[1734416327376,0.53405742,106630.0,106620.0,0.046898]
[1734416327878,0.49634912,106640.0,106630.0,0.046894]
[1734416327879,0.36092127,106640.0,106630.0,0.046894]
[1734416328170,0.36092127,106640.0,106630.0,0.10233085]
[1734416328372,0.00012127,106640.0,106630.0,0.40233085]
[1734416328589,0.44642941,106650.0,106640.0,0.04689]
[1734416328893,0.44642941,106650.0,106640.0,0.16392685]
[1734416329472,0.44700973,106650.0,106640.0,0.16392685]
[1734416329991,0.08620973,106650.0,106640.0,0.16392685]
[1734416330478,0.08570973,106650.0,106640.0,0.16392685]
[1734416331473,0.08620973,106650.0,106640.0,0.16392685]
[1734416331672,0.08620973,106650.0,106640.0,0.19552685]
[1734416332077,0.08620973,106650.0,106640.0,0.14009]
[1734416332577,0.08570973,106650.0,106640.0,0.14009]
[1734416333471,0.00198754,106650.0,106640.0,0.53184777]
[1734416334579,0.00148754,106650.0,106640.0,0.53184777]
[1734416335480,0.00198754,106650.0,106640.0,0.53184777]
[1734416336675,0.44665785,106650.0,106640.0,0.47024777]
[1734416336885,0.47985785,106650.0,106640.0,0.47024777]
[1734416337472,0.48035785,106650.0,106640.0,0.47024777]
[1734416337872,0.48035785,106650.0,106640.0,0.51663206]
[1734416338481,0.47985785,106650.0,106640.0,0.51663206]
[1734416338683,0.47985785,106650.0,106640.0,0.12487429]
[1734416339588,0.48035785,106650.0,106640.0,0.12487429]
[1734416340084,0.52724285,106650.0,106640.0,0.09327429]
[1734416340596,0.52674285,106650.0,106640.0,0.09327429]
[1734416341468,0.52724285,106650.0,106640.0,0.42873785]
[1734416342378,0.52724285,106650.0,106640.0,0.4479524]
[1734416342582,0.52674285,106650.0,106640.0,0.4479524]
[1734416343676,0.52724285,106650.0,106640.0,0.4479524]
[1734416344674,0.44287254,106650.0,106640.0,0.4479524]
[1734416345074,0.44287254,106650.0,106640.0,0.11248884]
[1734416345879,0.52724285,106650.0,106640.0,0.40105854]
[1734416346071,0.55814285,106650.0,106640.0,0.40106395]
[1734416346492,0.55764285,106650.0,106640.0,0.06559884]
[1734416346786,0.55764285,106650.0,106640.0,0.35472807]
[1734416347382,0.55764285,106650.0,106640.0,0.01921455]
[1734416347582,0.55764285,106650.0,106640.0,0.354783]
[1734416348291,0.55764285,106650.0,106640.0,0.01921455]
[1734416348795,0.55764285,106650.0,106640.0,0.35483117]
[1734416348978,0.55764285,106650.0,106640.0,0.01921455]
[1734416349585,0.55814285,106650.0,106640.0,0.01921455]
[1734416350278,0.47377254,106650.0,106640.0,0.06610355]
[1734416350477,0.47236532,106650.0,106640.0,0.06610355]
[1734416352592,0.47186532,106650.0,106640.0,0.06610355]
[1734416353297,0.47186532,106650.0,106640.0,0.046889]
[1734416353686,0.55623563,106650.0,106630.0,0.43843026]
[1734416353888,0.49205931,106640.0,106630.0,0.80239615]
[1734416354079,0.51848394,106640.0,106630.0,1.25103924]
[1734416354494,0.46308647,106640.0,106630.0,0.29726641]
[1734416354691,0.46308647,106640.0,106630.0,0.74646649]
[1734416355581,0.46308647,106640.0,106630.0,0.74696649]
[1734416355784,0.407689,106640.0,106630.0,0.64388807]
[1734416356097,0.407689,106640.0,106630.0,0.44018715]
[1734416356098,0.46308647,106640.0,106630.0,0.44018715]
[1734416356398,0.46308647,106640.0,106630.0,1.09308815]
[1734416356587,0.46308647,106640.0,106630.0,1.09258815]
[1734416356818,0.46308647,106640.0,106630.0,1.11155784]
[1734416356987,0.51848394,106640.0,106630.0,0.25037341]
[1734416357293,0.51848394,106640.0,106630.0,0.43971661]
[1734416357490,0.51848394,106640.0,106630.0,0.44021661]
[1734416358192,0.51848394,106640.0,106630.0,0.04717249]
[1734416358583,0.51848394,106640.0,106620.0,0.43994212]
[1734416358793,0.55789147,106630.0,106620.0,0.43994212]
[1734416358989,0.55789147,106630.0,106620.0,0.046898]
[1734416361187,0.502494,106630.0,106620.0,0.046898]
[1734416361397,0.55789147,106630.0,106620.0,0.046898]
[1734416362394,0.55789147,106630.0,106620.0,0.43994212]